bitfinex/quotes_ETHUSD_20260227
["timestamp","ask_amount","ask_price","bid_price","bid_amount"]
[1772164955207,1.22110385,2047.4,2047.0,0.001]
[1772164955411,0.46764096,2047.3,2047.0,0.001]
[1772164956127,0.002,2047.5,2047.0,0.001]
[1772164956322,0.002,2048.0,2047.4,0.4696916]
[1772164956510,1.17264795,2048.0,2047.4,0.4696916]
[1772164956915,0.002,2048.0,2047.5,0.4696916]
[1772164958199,0.002,2048.5,2047.8,1.22082234]
[1772164958525,1.17064795,2048.4,2047.9,0.4696916]
[1772164959109,1.17064795,2048.3,2047.9,0.4696916]
[1772164959316,1.17064795,2048.4,2047.8,1.22082234]
[1772164959598,0.47719603,2048.4,2047.8,1.22082234]
[1772164959799,1.65629722,2048.3,2047.6,1.22090606]
[1772164960023,0.48564927,2048.2,2047.6,1.22090606]
[1772164960908,0.48564927,2048.2,2047.4,4.88376636]
[1772164961122,1.17064795,2048.1,2047.4,4.88376636]
[1772164962020,1.17064795,2048.1,2047.4,5.37933238]
[1772164962226,0.48564927,2048.2,2047.5,0.49556602]
[1772164962729,0.002,2047.9,2047.5,0.49556602]
[1772164962926,0.002,2047.9,2047.6,1.22094159]
[1772164963818,0.002,2047.9,2047.3,1.2211205]
[1772164965323,0.002,2047.9,2047.3,1.71668652]
[1772164965528,0.002,2047.9,2047.4,0.49556602]
[1772164967416,0.002,2047.9,2047.5,1.22100122]
[1772164968004,0.002,2047.9,2047.5,1.71656724]
[1772164968726,0.002,2048.4,2047.9,0.49556602]
[1772164969104,0.002,2048.4,2047.7,3.83985256]
[1772164969506,0.002,2048.4,2047.8,1.22082234]
[1772164970820,0.002,2048.4,2047.9,0.49556602]
[1772164972111,0.002,2048.4,2048.0,1.22070312]
[1772164973418,0.002,2048.7,2048.1,0.49556602]
[1772164973919,0.002,2048.9,2048.3,0.49556602]
[1772164974119,0.002,2048.9,2048.4,1.71603077]
[1772164975941,0.002,2049.0,2048.4,1.22046475]
[1772164976112,0.48764927,2049.0,2048.1,0.001]
[1772164976431,0.48764927,2048.7,2048.1,3.34528654]
[1772164978503,0.48564927,2048.9,2048.3,0.49556602]
[1772164978726,0.002,2049.0,2048.3,0.49556602]
[1772164979008,1.70775971,2049.0,2048.3,0.49556602]
[1772164979207,1.22211227,2049.0,2048.2,2.72058392]
[1772164979407,0.48564927,2048.9,2048.2,2.72058392]
[1772164980224,0.48564927,2048.9,2048.2,1.5]
[1772164980731,0.48564927,2048.8,2048.2,2.72053479]
[1772164981636,0.48564927,2048.8,2048.2,1.5]
[1772164982133,0.48564927,2048.8,2048.1,1.2216016]
[1772164982729,0.48564927,2048.8,2048.1,1.71716762]
[1772164982930,0.002,2049.0,2048.4,0.49556602]
[1772164983142,0.48564927,2049.3,2048.7,0.49556602]
[1772164984317,0.002,2049.4,2048.7,0.49556602]
[1772164984608,0.002,2049.4,2049.0,0.49556602]
[1772164984827,0.002,2049.4,2049.1,1.22004782]
[1772164985940,0.48564927,2049.8,2049.1,1.22004782]
[1772164986142,0.48564927,2049.8,2049.2,3.34428654]
[1772164986338,1.70810215,2050.1,2049.2,3.34428654]
[1772164986635,0.48864927,2050.1,2049.2,3.83985256]
[1772164986836,0.48864927,2050.1,2049.3,1.21992875]
[1772164987038,0.48564927,2050.0,2049.2,5.05979438]
[1772164987928,0.48564927,2050.0,2049.2,5.05478448]
[1772164988129,0.48564927,2050.0,2049.3,0.49556602]
[1772164988335,0.002,2049.3,2049.2,4.55921846]
[1772164988531,0.48564927,2050.0,2049.2,4.55921846]
[1772164988733,0.48564927,2050.0,2049.3,0.49556602]
[1772164988934,0.003,2050.1,2049.4,1.71543525]
[1772164989245,0.003,2050.1,2049.5,3.83985256]
[1772164989413,0.003,2050.1,2049.6,0.49556602]
[1772164989814,1.21931752,2050.4,2049.8,3.86071519]
[1772164990441,1.21931752,2050.4,2049.8,3.34428654]
[1772164990646,1.6919886,2050.4,2049.5,5.36271519]
[1772164990818,0.47267108,2050.3,2049.5,3.86071519]
[1772164991018,1.69205217,2050.3,2049.6,0.51642865]
[1772164991244,1.2222614,2050.5,2049.6,0.51642865]
[1772164992463,1.69493248,2050.5,2049.6,0.51642865]
[1772164993027,1.69493248,2050.5,2049.8,0.51642865]
[1772164994635,0.47267108,2050.4,2049.6,1.21970651]
[1772164994947,0.47267108,2050.4,2049.6,1.73613516]
[1772164995244,0.47267108,2050.3,2049.6,1.21970651]
[1772164996252,0.47267108,2050.3,2049.6,1.73613516]
[1772164996830,1.21929995,2050.4,2049.7,0.51642865]
[1772164997158,0.47267108,2050.9,2050.2,0.51642865]
[1772164997345,0.47267108,2051.1,2050.2,3.86071519]
[1772164997751,0.47267108,2051.1,2050.3,0.51642865]
[1772164998256,1.21877238,2051.3,2050.5,3.86071519]
[1772164998452,1.21877238,2051.3,2050.6,0.51642865]
[1772164998969,0.47267108,2051.4,2050.6,2.01642865]
[1772164999142,0.47267108,2051.4,2050.8,4.56331287]
[1772165000069,1.21863514,2051.5,2050.8,5.07974152]
[1772165000288,1.21854285,2051.7,2050.9,0.51642865]
[1772165000444,0.47267108,2051.0,2050.0,0.29467127]
[1772165000769,0.47267108,2050.9,2050.0,4.35991466]
[1772165001137,0.47267108,2050.7,2050.1,4.35991466]
[1772165001338,1.21903647,2050.8,2050.0,3.34428654]
[1772165001550,1.22090455,2051.1,2050.3,3.34428654]
[1772165001748,0.002,2051.1,2050.5,0.51642865]
[1772165002354,0.002,2051.1,2050.7,8.712661]
[1772165002542,0.002,2051.1,2050.7,6.342959]
[1772165003165,0.002,2051.1,2050.7,5.1112]
[1772165003354,0.002,2051.1,2050.7,1.21908949]
[1772165003754,0.002,2051.1,2050.8,4.35991466]
[1772165003960,1.69088004,2052.2,2051.2,3.86071519]
[1772165004145,1.69374248,2052.5,2051.5,3.86071519]
[1772165004347,0.003,2052.5,2052.1,3.34428654]
[1772165004679,1.6937031,2052.5,2051.8,1.502]
[1772165004843,0.003,2052.5,2051.9,4.35991466]
[1772165005046,1.69031505,2053.2,2052.3,1.21814549]
[1772165005387,6.68857308,2054.4,2052.3,1.21814549]
[1772165005388,0.1613487,2054.3,2053.1,3.34428654]
[1772165005681,0.47267108,2055.4,2054.1,8.712661]
[1772165005885,2.48352315,2055.9,2054.0,3.86071519]
[1772165005886,0.67256504,2056.8,2055.4,0.51642865]
[1772165006083,1e-08,2058.4,2056.4,6.43798777]
[1772165006282,1.69523279,2059.0,2057.5,2.51604256]
[1772165006482,0.47267108,2058.8,2057.5,4.1024477]
[1772165006683,0.47267108,2058.9,2057.5,4.1024477]
[1772165006851,1.21424061,2058.9,2057.6,4.1024477]
[1772165007054,1.21400475,2059.3,2057.7,0.51642865]
[1772165007251,0.47267108,2059.2,2057.8,4.1024477]
[1772165007481,1.42249625,2059.3,2057.8,4.61887635]
[1772165007786,0.2084915,2059.3,2057.9,0.94374585]
[1772165008084,1.42249625,2059.3,2058.0,0.4273172]
[1772165008278,3.78258112,2058.6,2056.9,0.51642865]
[1772165008478,0.08192,2058.5,2057.1,4.1024477]
[1772165008689,3.30991004,2058.2,2057.1,3.6124477]
[1772165008893,2.83568025,2058.2,2057.1,3.6016347]
[1772165009184,1.21471259,2058.1,2057.1,3.6016347]
[1772165009356,0.2084915,2058.6,2057.2,0.18685624]
[1772165009712,3.69719133,2059.9,2059.3,4.831237]
[1772165009853,0.1,2060.0,2059.4,3.38787072]
[1772165010181,1.31360536,2060.0,2058.8,0.51642865]
[1772165010387,0.47267108,2059.9,2057.7,0.44227216]
[1772165010681,0.47267108,2059.9,2056.8,1.45857063]
[1772165010682,3.30991004,2059.0,2057.2,0.44227216]
[1772165010880,0.47267108,2058.9,2057.3,0.79]
[1772165011180,1.21453556,2058.4,2056.7,1.65778807]
[1772165011352,1.21429959,2058.8,2056.8,0.49402351]
[1772165011548,1.21424924,2058.9,2057.2,0.49402351]
[1772165011784,0.47267108,2059.0,2057.0,3.30991004]
[1772165011785,1.68688573,2059.0,2057.0,3.30991004]
[1772165011951,0.47267108,2058.4,2057.1,1.542]
[1772165012153,0.47267108,2058.4,2056.4,1.70970887]
[1772165012491,0.47267108,2058.0,2056.5,1.339]
[1772165012652,0.47267108,2058.6,2056.6,0.4957942]
[1772165012976,0.47267108,2058.6,2056.7,3.881424]
[1772165013277,1.21447656,2058.5,2056.9,3.881424]
[1772165013467,0.47267108,2059.2,2057.4,0.57947194]
[1772165013676,0.47267108,2059.7,2058.0,0.18685624]
[1772165013904,0.47267108,2059.7,2058.3,3.881424]
[1772165014276,0.47267108,2059.5,2057.9,1.335]
[1772165014471,0.47267108,2059.5,2058.1,3.881424]
[1772165014675,1.21572531,2059.8,2058.2,0.18685624]
[1772165014979,1.21572531,2059.8,2058.5,3.881424]
[1772165015309,1.21572531,2059.8,2058.0,3.881424]
[1772165015310,0.47267108,2059.6,2058.0,3.881424]
[1772165015495,2.83703743,2059.6,2058.2,2.499059]
[1772165015698,0.47267108,2059.6,2058.3,0.18685624]
[1772165015875,0.002,2059.8,2058.6,3.881424]
[1772165016203,0.47467108,2059.8,2058.4,3.881424]
[1772165016376,0.47467108,2059.8,2058.2,3.881424]
[1772165016572,0.47467108,2059.8,2058.5,0.18685624]
[1772165016773,0.47467108,2059.8,2058.6,3.881424]
[1772165016774,0.002,2059.8,2058.6,3.881424]
[1772165017006,0.002,2059.8,2059.0,3.881424]
[1772165017301,0.00972705,2060.0,2059.4,3.881424]
[1772165017525,1.68581206,2060.8,2059.4,3.881424]
[1772165017682,0.47267108,2060.7,2059.6,3.881424]
[1772165017883,0.47267108,2060.7,2059.2,3.881424]
[1772165017884,0.47267108,2060.6,2059.2,3.881424]
[1772165018279,1.68567447,2061.0,2059.4,3.881424]
[1772165018479,0.47267108,2060.9,2059.2,3.881424]
[1772165018678,0.47267108,2060.7,2059.2,3.881424]
[1772165018904,0.47267108,2060.7,2059.4,3.881424]
[1772165019205,1.21323886,2060.6,2059.2,5.09543357]
[1772165019385,1.21323886,2060.6,2059.3,3.881424]
[1772165019588,0.50387178,2060.5,2058.8,1.71827995]
[1772165019910,0.52393292,2060.1,2058.2,3.881424]
[1772165020112,0.52393292,2059.9,2058.2,3.881424]
[1772165020279,0.52393292,2059.9,2058.2,2.73831]
[1772165020703,2.88829927,2059.9,2058.2,2.73831]
[1772165020904,0.52393292,2059.7,2058.2,2.73831]
[1772165021104,0.52393292,2059.7,2058.2,3.798956]
[1772165021323,0.52393292,2059.5,2058.2,1.21464565]
[1772165021503,0.52393292,2059.5,2058.3,3.881424]
[1772165021882,0.52393292,2059.4,2057.8,3.881424]
[1772165022086,0.52393292,2059.4,2057.8,2.347481]
[1772165022814,0.52393292,2059.4,2058.1,0.18685624]
[1772165022987,1.21382792,2059.6,2058.2,3.881424]
[1772165023190,1.21382792,2059.6,2058.4,3.304]
[1772165023396,4.85531171,2059.7,2058.6,3.881424]
[1772165023594,4.85531171,2059.7,2058.6,2.221161]
[1772165023794,4.85531171,2059.7,2058.5,3.881424]
[1772165024014,0.52393292,2059.6,2058.3,1.541]
[1772165024195,0.52393292,2059.6,2058.4,3.881424]
[1772165025392,1.73781978,2059.5,2058.4,2.896227]
[1772165025600,0.52393292,2059.4,2058.3,1.541]
[1772165025901,0.52393292,2059.4,2058.4,2.202]
[1772165026087,0.52393292,2059.4,2058.3,1.541]
[1772165026485,1.624,2059.3,2057.9,3.881424]
[1772165026692,2.14793292,2059.3,2057.9,3.881424]
[1772165027727,1.21406371,2059.2,2058.4,0.001]
[1772165028025,1.73799663,2059.2,2058.4,0.001]
[1772165030306,0.52393292,2059.1,2058.4,0.001]
[1772165031306,0.002,2059.5,2058.5,3.881424]
[1772165031307,1.73985465,2059.5,2058.5,3.881424]
[1772165031732,1.73985465,2059.5,2058.6,3.881424]
[1772165031935,1.73985465,2059.5,2058.5,2.994331]
[1772165032927,0.52393292,2059.4,2058.4,0.001]
[1772165033117,0.52393292,2059.4,2058.5,3.443297]
[1772165033312,0.52393292,2059.4,2058.6,0.42843316]
[1772165033514,0.52393292,2059.4,2058.7,0.42843316]
[1772165033723,1.2159128,2059.5,2058.8,0.42843304]
[1772165033930,1.2159128,2059.5,2058.5,3.881424]
[1772165034320,1.21589007,2059.5,2058.7,3.881424]
[1772165034644,0.002,2059.7,2059.0,0.51125764]
[1772165034809,1.21641662,2060.3,2059.3,3.881424]
[1772165035014,0.52393292,2060.6,2059.5,2.884235]
[1772165035015,5.37690194,2060.6,2059.5,2.884235]
[1772165035337,5.37690194,2060.6,2059.6,0.43119802]
[1772165035338,1.73723066,2060.5,2059.6,0.43119802]
[1772165035507,1.73723066,2060.5,2058.9,2.36436635]
[1772165035842,1.21329774,2060.5,2059.7,2.5985]
[1772165036037,1.21329774,2060.5,2059.8,0.4345763]
[1772165036217,1.21329774,2060.5,2059.9,0.4345763]
[1772165036420,1.21329774,2060.5,2059.4,1.21390069]
[1772165036620,1.21329774,2060.5,2059.5,0.43513759]
[1772165036809,1.21329774,2060.5,2059.6,0.43513759]
[1772165037010,1.21329774,2060.5,2059.7,0.43513759]
[1772165037214,1.73723066,2060.5,2059.2,2.884235]
[1772165037441,1.21329774,2060.5,2059.4,2.884235]
[1772165037740,4.85251661,2060.8,2059.5,2.884235]
[1772165037938,5.37644953,2060.8,2059.5,2.884235]
[1772165038140,0.52393292,2061.4,2059.8,3.39549264]
[1772165038343,0.52393292,2061.4,2060.0,2.884235]
[1772165038521,0.52393292,2061.4,2059.6,0.18685624]
[1772165038717,0.52393292,2061.4,2059.8,2.884235]
[1772165039126,0.52393292,2061.4,2059.7,0.51125764]
[1772165039345,0.52393292,2061.4,2059.8,0.18685624]
[1772165039538,0.52393292,2061.1,2059.4,1.2139458]
[1772165039737,0.52393292,2060.9,2059.4,1.2139458]
[1772165040236,0.52393292,2060.9,2059.5,0.18685624]
[1772165040548,1.73670094,2061.4,2059.9,0.69811388]
[1772165041054,0.52393292,2061.3,2059.9,0.69811388]
[1772165041236,0.52393292,2061.3,2059.4,3.89312458]
[1772165041428,0.52393292,2061.3,2059.5,0.18685624]
[1772165041635,4.8500316,2061.9,2060.3,0.51125764]
[1772165041944,0.52393292,2061.5,2059.9,0.787]
[1772165042251,0.52393292,2061.5,2060.3,0.18685624]
[1772165042552,0.52393292,2061.2,2059.6,2.50428464]
[1772165042751,0.52393292,2061.2,2059.7,0.18685624]
[1772165042752,0.002,2060.9,2059.7,0.18685624]
[1772165042920,0.002,2060.9,2059.7,0.69811388]
[1772165043119,0.002,2060.9,2059.7,0.18685624]
[1772165043120,0.52593292,2060.9,2059.7,0.18685624]
[1772165043320,0.002,2060.9,2059.9,0.5]
[1772165043947,0.52593292,2060.9,2059.2,2.73574908]
[1772165044124,0.52593292,2060.9,2059.3,4.85579617]
[1772165044339,0.52593292,2060.9,2059.3,5.36705381]
[1772165044533,0.52593292,2060.9,2059.4,0.51125764]
[1772165044861,0.52593292,2060.9,2059.5,0.18685624]
[1772165045835,1.21312111,2060.8,2059.6,1.72508556]
[1772165046733,0.52393292,2060.7,2059.7,0.18685624]
[1772165046930,0.52393292,2060.7,2059.6,1.21382792]
[1772165047324,0.52393292,2060.7,2059.0,7.30238218]
[1772165047325,0.52393292,2060.7,2059.0,1.21412267]
[1772165047637,0.52393292,2060.7,2059.0,1.53079325]
[1772165047840,0.52393292,2060.5,2059.1,0.50352682]
[1772165048038,0.52393292,2060.5,2059.1,1.01478446]
[1772165048258,0.52393292,2060.5,2059.1,0.50352682]
[1772165048436,4.8526783,2060.8,2059.4,0.18685624]
[1772165048437,4.85256655,2060.8,2059.4,0.18685624]
[1772165048763,5.37649947,2060.8,2059.4,0.50352682]
[1772165048959,0.52393292,2060.7,2059.7,0.18685624]
[1772165049326,0.52393292,2060.7,2059.4,0.18685624]
[1772165049548,0.52393292,2060.7,2059.2,0.18685624]
[1772165049755,0.53550513,2060.5,2059.5,1.21388686]
[1772165050452,0.53550513,2060.5,2059.2,1.21406371]
[1772165050635,0.53550513,2060.5,2059.5,2.884235]
[1772165051161,0.53550513,2060.4,2059.2,0.18685624]
[1772165051460,0.53550513,2060.4,2059.4,0.18685624]
[1772165051658,1.2132226,2060.7,2059.7,21.787555]
[1772165051839,0.53550513,2060.6,2059.6,1.21382792]
[1772165052040,1.2132226,2060.7,2059.5,1.21388407]
[1772165052041,0.53550513,2060.5,2059.5,1.21388407]
[1772165052241,2.884235,2060.3,2059.5,1.21388407]
[1772165052552,2.884235,2060.1,2059.3,2.9198203]
[1772165053264,0.53550513,2060.0,2058.6,1.71554708]
[1772165053558,3.41974013,2059.5,2058.6,1.21541495]
[1772165053757,0.53550513,2059.4,2058.6,0.001]
[1772165053965,4.09823975,2059.3,2058.6,0.001]
[1772165054358,3.41974013,2059.2,2058.6,0.001]
[1772165054731,0.53550513,2059.3,2058.6,0.001]
[1772165054932,3.41974013,2059.1,2058.6,0.001]
[1772165055159,2.884235,2059.0,2058.6,0.001]
[1772165055361,0.53550513,2058.9,2058.4,0.001]
[1772165055571,0.53550513,2058.8,2058.1,0.001]
[1772165055860,3.60373523,2058.5,2058.1,0.001]
[1772165056063,1.21450023,2058.5,2058.1,0.001]
[1772165056235,1.75000536,2058.5,2058.1,0.001]
[1772165056437,1.70450871,2058.4,2058.1,0.001]
[1772165056835,2.24001384,2058.3,2057.4,1.517]
[1772165057030,1.70450871,2058.1,2057.4,1.517]
[1772165057235,2.24001384,2058.2,2057.4,1.517]
[1772165057435,1.21450023,2058.5,2057.4,1.517]
[1772165057436,0.53550513,2058.1,2057.4,1.517]
[1772165057851,1.21477162,2058.0,2057.4,1.517]
[1772165058343,0.53550513,2057.9,2056.8,10.03852835]
[1772165058542,0.53550513,2057.9,2056.9,20.814942]
[1772165058740,0.53550513,2057.9,2056.8,1.21548035]
[1772165058933,0.53550513,2057.9,2056.9,30.0]
[1772165059136,0.53550513,2057.9,2056.7,2.73050947]
[1772165059335,0.53550513,2057.9,2056.7,1.515]
[1772165059569,0.53550513,2057.7,2056.7,1.515]
[1772165059770,1.75023942,2058.1,2057.0,30.0]
[1772165059960,1.75023942,2058.1,2057.2,10.751]
[1772165060582,0.53550513,2058.0,2057.2,7.73381412]
[1772165060781,0.53550513,2057.2,2055.7,1.21613075]
[1772165061079,7.845,2057.0,2055.8,22.11913769]
[1772165061279,0.53550513,2057.2,2055.8,22.6192939]
[1772165061452,0.53550513,2057.6,2056.1,2.36436635]
[1772165061804,7.845,2057.5,2056.2,0.50015621]
[1772165062085,1.21508599,2057.5,2056.3,1.2157759]
[1772165062286,0.53550513,2057.4,2056.4,6.21113769]
[1772165062456,7.845,2057.3,2056.2,1.21581548]
[1772165062788,7.845,2056.7,2055.9,6.21113769]
[1772165062942,0.53550513,2056.9,2055.9,7.42713881]
[1772165063138,0.53550513,2056.9,2055.9,6.21113769]
[1772165063685,0.965484,2055.9,2055.0,1.21649721]
[1772165063839,0.965484,2055.9,2054.7,6.38178645]
[1772165063840,7.845,2055.5,2054.7,1.515]
[1772165064045,1.21636744,2055.3,2054.8,6.21113769]
[1772165064243,1.21636744,2055.3,2054.2,6.38299396]
[1772165064553,7.845,2054.9,2054.2,7.72613769]
[1772165064737,7.845,2054.9,2053.7,1.515]
[1772165064738,7.845,2054.7,2053.7,1.515]
[1772165064939,7.845,2054.5,2053.6,4.929709]
[1772165065178,0.53550513,2055.1,2053.7,6.21113769]
[1772165065496,0.53550513,2054.6,2053.7,6.21113769]
[1772165065641,0.53550513,2055.0,2053.7,6.21113769]
[1772165065837,7.845,2054.3,2053.7,6.21113769]
[1772165066089,7.845,2054.1,2053.2,1.21761153]
[1772165066294,8.38050513,2054.0,2053.3,5.65034725]
[1772165066493,8.38050513,2054.0,2052.9,1.21774644]
[1772165066697,8.38050513,2054.0,2052.6,6.38870245]
[1772165066698,7.845,2053.7,2052.7,6.86825537]
[1772165067108,7.845,2054.0,2052.8,6.494]
[1772165067597,7.845,2054.0,2052.9,5.65034725]
[1772165067771,7.845,2053.8,2052.9,5.65034725]
[1772165067973,0.53550513,2054.5,2053.0,9.30637421]
[1772165068292,7.845,2054.3,2053.2,2.30415]
[1772165068474,7.845,2054.3,2053.2,0.001]
[1772165068670,7.845,2054.1,2053.2,0.001]
[1772165068869,7.845,2054.0,2053.3,5.65034725]
[1772165069069,1.75235728,2054.5,2053.3,5.65034725]
[1772165069070,1.605,2054.5,2053.4,4.47226]
[1772165069307,1.7521181,2054.9,2053.6,4.068744]
[1772165069607,7.845,2054.9,2053.8,8.001248]
[1772165069775,9.06161931,2054.9,2053.8,3.697748]
[1772165070163,7.845,2054.9,2054.0,1.21713729]
[1772165070314,7.845,2055.0,2054.0,1.21713729]
[1772165070607,1.605,2055.1,2054.2,7.906748]
[1772165070806,1.21618992,2055.6,2054.2,8.40690421]
[1772165070969,7.845,2055.4,2054.3,6.15050346]
[1772165071171,1.606,2055.6,2054.5,11.71345021]
[1772165071403,1.606,2055.6,2054.5,0.50015621]
[1772165071570,1.606,2055.6,2054.6,5.65034725]
[1772165071773,7.845,2055.5,2054.6,5.65034725]
[1772165072189,1.606,2055.6,2054.7,9.34302263]
[1772165072497,1.606,2055.6,2054.7,1.21672263]
[1772165072678,1.2161136,2055.8,2054.8,5.65034725]
[1772165073089,7.671,2055.7,2054.8,5.65034725]
[1772165073310,2.56578235,2056.9,2055.2,0.50015621]
[1772165073603,2.56578235,2056.9,2055.6,7.76353021]
[1772165073604,6.704517,2056.7,2055.6,7.76353021]
[1772165073777,6.704517,2056.8,2055.7,15.61040225]
[1772165073988,6.704517,2056.6,2055.7,5.65034725]
[1772165074215,7.92012139,2056.6,2055.8,1.2160716]
[1772165074506,7.91999735,2056.8,2055.7,6.86644481]
[1772165074696,6.704517,2056.6,2055.7,6.86644481]
[1772165075785,3.78122672,2056.9,2055.7,6.86644481]
[1772165075786,6.704517,2056.8,2055.7,6.86644481]
[1772165076507,2.81933331,2057.1,2055.8,2.01815621]
[1772165076683,6.704517,2056.9,2055.9,6.15050346]
[1772165078495,6.704517,2056.5,2055.3,0.50015621]
[1772165078732,6.704517,2055.9,2055.4,5.08000905]
[1772165079028,6.704517,2055.9,2054.9,1.78151898]
[1772165079323,6.704517,2055.5,2055.0,5.08000905]
[1772165079484,6.704517,2055.5,2054.4,2.08092345]
[1772165079485,6.704517,2055.4,2054.6,1.21678077]
[1772165079826,1.602,2055.7,2054.5,5.08000905]
[1772165079827,6.704517,2055.3,2054.5,5.08000905]
[1772165080005,1.602,2055.7,2054.5,6.86175537]
[1772165080326,6.704517,2055.2,2054.5,6.86176604]
[1772165080505,1.21648581,2055.1,2054.5,5.08000905]
[1772165080832,4.8650519,2055.5,2054.5,5.08000905]
[1772165081016,1.601,2056.3,2054.7,0.56492345]
[1772165082613,1.601,2056.3,2054.8,1.78158687]
[1772165082614,1.21583503,2056.2,2054.8,1.78158687]
[1772165082987,3.31643645,2056.1,2054.9,5.08000905]
[1772165083191,0.02877924,2056.0,2054.9,0.001]
[1772165083694,1.21583503,2056.2,2054.9,0.001]
[1772165083895,1.21583503,2056.2,2055.0,0.56492345]
[1772165084694,4.86334014,2056.4,2055.1,6.29649486]
[1772165084892,1.21571678,2056.4,2055.2,0.56492345]
[1772165085492,1.602,2056.5,2055.4,0.56492345]
[1772165085691,1.602,2056.5,2055.6,0.56492345]
[1772165086132,0.002,2056.5,2055.6,0.56492345]
[1772165086292,0.002,2056.5,2055.8,0.56492345]
[1772165086636,0.002,2056.5,2055.9,1.21601245]
[1772165086989,0.002,2056.5,2056.1,0.56492345]
[1772165087839,2.8143771,2057.0,2055.9,1.21601245]
[1772165087993,2.8143771,2057.0,2056.1,5.04410954]
[1772165088192,6.1325713,2057.0,2055.9,5.04410954]
[1772165088395,6.1325713,2057.0,2055.6,1.21615633]
[1772165089034,6.1325713,2057.0,2055.7,5.04410954]
[1772165089413,3.31643645,2056.6,2055.3,1.79924037]
[1772165089613,3.31993511,2056.6,2055.4,5.04410954]
[1772165089830,3.31993511,2056.6,2055.0,6.26061505]
[1772165090144,0.08192,2056.9,2055.1,0.5828732]
[1772165090319,0.00522159,2056.8,2055.1,0.5828732]
[1772165090943,1.22070194,2056.8,2055.2,6.26053616]
[1772165091109,0.00692438,2056.5,2055.2,5.04410954]
[1772165091838,3.32336083,2056.2,2054.9,0.001]
[1772165092017,3.31643645,2055.8,2055.1,5.04410954]
[1772165092225,3.31643645,2055.8,2054.9,0.001]
[1772165092226,1.595,2055.7,2054.9,0.001]
[1772165093037,1.21618992,2055.6,2054.3,1.79981779]
[1772165094219,1.21618992,2055.6,2054.3,0.5828732]
[1772165094418,1.21618992,2055.6,2054.4,0.5833732]
[1772165094939,1.21618992,2055.6,2054.5,1.80021428]
[1772165095149,2.81117641,2055.7,2054.6,0.5833732]
[1772165095313,2.81113631,2055.7,2054.6,0.5833732]
[1772165095510,1.595,2055.7,2054.6,0.5833732]
[1772165095708,1.21610376,2055.8,2054.6,0.5833732]
[1772165095914,1.165,2056.1,2054.6,0.5833732]
[1772165096945,1.592,2056.0,2054.8,0.5833732]
[1772165097522,1.592,2056.0,2054.8,0.5843732]
[1772165099045,1.21601245,2055.9,2055.0,0.5833732]
[1772165099260,2.80799923,2056.0,2055.0,0.5833732]
[1772165100037,1.592,2056.0,2055.0,0.5833732]
[1772165100245,4.86294036,2056.4,2055.0,0.5833732]
[1772165100452,2.80769776,2056.5,2055.2,0.5833732]
[1772165100656,1.592,2056.5,2055.4,0.5833732]
[1772165100866,0.002,2056.5,2055.6,0.5833732]
[1772165101035,0.002,2056.5,2055.8,0.5833732]
[1772165101359,0.002,2056.5,2055.7,1.21613075]
[1772165101360,0.002,2056.7,2056.0,0.5823732]
[1772165102347,0.002,2056.7,2055.7,0.5823732]
[1772165103466,0.002,2056.7,2055.7,1.79850029]
[1772165103776,0.002,2056.7,2055.3,0.5823732]
[1772165104742,0.002,2056.7,2055.0,1.21651304]
[1772165104743,0.02838936,2056.6,2055.0,1.21651304]
[1772165104952,3.31843645,2056.7,2055.1,0.5823732]
[1772165105464,3.34828015,2056.7,2055.1,0.5823732]
[1772165105836,1.21559856,2056.6,2055.1,1.79884711]
[1772165106248,1.21559856,2056.6,2055.1,1.79885761]
[1772165106664,1.21559856,2056.6,2055.1,0.5823732]
[1772165106866,1.21559856,2056.6,2055.1,1.79885051]
[1772165107447,1.21559856,2056.6,2055.2,0.5823732]
[1772165108568,1.2497113,2056.6,2055.2,0.5823732]
[1772165108773,0.03411274,2056.5,2055.2,0.5823732]
[1772165109160,0.57144293,2056.2,2054.8,0.001]
[1772165109473,0.57144293,2056.0,2054.8,0.001]
[1772165109640,1.581,2055.9,2054.8,1.77206621]
[1772165109971,2.14585926,2055.9,2054.8,0.001]
[1772165110275,0.56485926,2055.8,2054.8,0.001]
[1772165110460,1.78099001,2055.7,2054.8,0.001]
[1772165111055,0.56485926,2055.6,2054.5,0.001]
[1772165111872,0.56485926,2055.4,2054.5,0.001]
[1772165112365,1.21660421,2054.9,2053.6,5.41087088]
[1772165112573,1.58,2054.8,2053.6,5.41087088]
[1772165112770,1.58,2054.8,2053.6,1.75877026]
[1772165113249,2.14485926,2054.8,2053.5,1.21742205]
[1772165113583,1.58,2054.7,2053.3,0.5413959]
[1772165113937,1.21660421,2054.9,2053.4,25.56287]
[1772165114150,2.79142662,2055.2,2053.7,0.5413959]
[1772165114867,2.79142662,2055.2,2053.9,0.5413959]
[1772165116059,1.21642662,2055.2,2053.9,0.5413959]
[1772165116262,1.21642662,2055.2,2054.1,0.5413959]
[1772165116847,2.79536744,2055.4,2054.2,0.5413959]
[1772165117456,2.79536744,2055.4,2054.1,1.21706441]
[1772165117666,2.79536744,2055.4,2054.1,1.75846031]
[1772165118258,2.79536744,2055.4,2054.1,0.5413959]
[1772165118467,5.43127611,2055.3,2054.1,1.75847265]
[1772165118941,5.43127611,2055.3,2054.1,0.5413959]
[1772165119145,0.56485926,2055.2,2053.7,1.75871098]
[1772165120377,0.56485926,2055.2,2053.7,0.5413959]
[1772165121092,0.56485926,2055.0,2053.3,1.75894813]
[1772165121454,0.56485926,2055.0,2053.4,0.5413959]
[1772165121847,1.21648581,2055.1,2053.4,0.5413959]
[1772165121848,0.56485926,2054.8,2053.4,0.5413959]
[1772165122184,1.72385926,2054.7,2053.4,0.5413959]
[1772165122588,1.159,2054.7,2053.4,0.5413959]
[1772165122880,1.139,2055.0,2053.6,0.5413959]
[1772165123181,1.21660421,2054.9,2053.8,0.5413959]
[1772165125375,1.21660421,2054.9,2053.9,1.75859245]
[1772165125767,1.21660421,2054.9,2053.9,0.5413959]
[1772165127382,1.21660421,2054.9,2054.0,1.21713729]
[1772165128065,1.21660421,2054.9,2054.1,0.5413959]
[1772165129782,1.21660421,2054.9,2054.2,1.21701879]
[1772165131258,1.21660421,2054.9,2054.1,0.5413959]
[1772165131777,1.21660421,2054.9,2053.8,1.75861318]
[1772165132862,1.78146347,2054.9,2053.8,1.75861318]
[1772165133065,1.78146347,2054.9,2053.9,0.5413959]